{"text_format":"1","workbook":"xlsx","n_sheets":7,"sheets":["مقدمة","بيانات عامة","مؤشرات محفظة التمويل","مؤشرات جودة محفظة التمويل",". مؤشرات مالية","مؤشرات تشغيلية ","مؤشرات العمالة والانتاجية"],"not_rendered":{"charts":0,"images":2,"macros":1,"external_links":0,"defined_names":0,"comments":0,"pivot_tables":0},"unopened":[],"bounds":{"document_bytes":16777216,"sheet_cells":100000,"rows_first":2000,"rows_last":500,"rows_between":2000,"halvings":0,"cell_chars":16384,"cell_head_chars":4096},"cells_cut":0,"cells_raw":0,"read":"whole","date_system":"1900"}

{"sheet":"مقدمة","index":0,"n_rows":26,"n_cols":10,"rows_kept":26,"cut":false,"hidden":false,"merged":[[18,9,18,13],[22,19,22,20]]}
[]
[]
[]
[]
[]
[null,null,null,null,null,"        ثانياُ: تقرير (ج.م.ص. / 2) الأداء الربع سنوي لنشاط التمويل متناهى الصغر"]
[]
[null,null,null,"تلتزم الجمعية أو المؤسسة  بناءً على نص المادة \"42 \" من قواعد ومعايير ممارسة نشاط التمويل متناهي الصغربإعداد التقارير الرقابية  المبينة فى الملحق (ب) وتسليمها "]
[null,null,null,"للوحدة فى التوقيتات المحددة قرين كل منها."]
[]
[null,null,null,"على الجمعية أو المؤسسة السعى نحو توافق النماذج المستخدمة وتصميم قواعد البيانات وتطبيقات نظم المعلومات بقدر الإمكان مع متطلبات إعداد التقارير الرقابية المشار "]
[null,null,null,"إليها لتسهيل إعدادها."]
[]
[null,null,null,"يجب على الجمعية أو المؤسسة بذل العناية اللازمة للتأكد من دقة التقارير المقدمة للوحدة وسلامة تصويرها ."]
[]
[null,null,null,"وقد تم تصميم النموذج الإلكتروني المرفق لمساعدة الجمعيات و المؤسسات الأهلية بإعداد التقارير الشهرية المطلوبة "]
[]
[]
[null,null,null,null,null,null,null,null,null,"  التوقيت: خلال ستة أسابيع من نهاية كل ربع سنة مالية"]
[]
[]
[]
[null,null,null,null,null,null,null,"التقرير ربع السنوى يعد على أساس تراكمى (ثلاثة أشهر، ستة أشهر، تسعة أشهر، وسنة)"]
[null,null," "]
[]
[null,null,null,null,null,null,"                                                                                                                                                                                                                                                                                                                                                                                                                                                                                                                                                   "]

{"sheet":"بيانات عامة","index":1,"n_rows":36,"n_cols":12,"rows_kept":36,"cut":false,"hidden":false,"merged":[[7,3,12,10],[32,5,32,7],[4,3,4,10],[14,3,14,10],[24,4,24,10],[29,5,29,7],[16,4,16,10],[20,3,20,12],[26,3,26,12],[18,4,18,5],[22,4,22,10],[29,9,29,11]]}
[]
[]
[]
[]
[null,null,null,"  تقرير (ج.م.ص. / 2) الأداء الربع سنوي لنشاط التمويل متناهى الصغر"]
[]
[]
[]
[]
[]
[]
[]
[]
[]
[null,null,null,"بيانات الجمعية / المؤسسة الأهلية و بيانات معد التقرير"]
[]
[null,null,null,"اسم الجمعية/المؤسسة:"]
[]
[null,null,null,"رقم الترخيص :"]
[]
[null,null,null,"اسم وصفة معد التقرير"]
[]
[null,null,null,"اسم معد التقرير:"]
[]
[null,null,null,"صفة معد التقرير:"]
[]
[null,null,null,"بيانات التقرير"]
[]
[null,null,null,null,null,"يوم  -","شهر  -","سنة",null,"يوم  -","شهر  -","سنة"]
[null,null,null,"الفترة :","من",null,null,null,"إلى"]
[]
[null,null,null,null,null,"يوم  -","شهر  -","سنة"]
[null,null,null,"تاريخ الاعداد:"]
[]
[]
[null,"إعداد:",null,{"$f":"IF(E23=\"\",\"\",E23)","v":""}]

{"sheet":"مؤشرات محفظة التمويل","index":2,"n_rows":33,"n_cols":10,"rows_kept":33,"cut":false,"hidden":false,"merged":[[29,4,29,5],[16,4,16,5],[14,3,14,4],[25,4,25,5],[26,4,26,5],[27,4,27,5],[20,4,20,5],[21,4,21,5],[22,4,22,5],[23,4,23,5],[24,4,24,5],[15,3,15,6],[17,4,17,5],[18,4,18,5],[19,4,19,5],[1,6,1,7],[4,3,4,6],[28,4,28,5],[8,3,13,6]]}
[]
[null,{"$f":"IF('بيانات عامة'!E17=\"\",\"\",'بيانات عامة'!E17)","v":""},null,null,null,"ترخيص رقم:",{"$f":"IF('بيانات عامة'!$E$19=\"\",\"\",'بيانات عامة'!$E$19)","v":""}]
[]
[]
[null,null,null," تقرير (ج.م.ص. / 2) الأداء الربع سنوي لنشاط التمويل متناهى الصغر"]
[]
[null,null,null,"الفترة من :",{"$f":"IF('بيانات عامة'!F30=\"\",\"\",'بيانات عامة'!F30)","v":""},"إلى:",{"$f":"IF('بيانات عامة'!J30=\"\",\"\",'بيانات عامة'!J30)","v":""}]
[]
[]
[]
[]
[]
[]
[]
[]
[null,null,null,"1. مؤشرات محفظة التمويل"]
[null,null,null,null,"المؤشر",null,"القيمة"]
[null,null,null,1.1000000000000001,"معدل نمو المحفظة",null,null,-1,null,1]
[null,null,null,1.2,"متوسط قيمة التمويل للعميل عند المنح (تمويل فردي)"]
[null,null,null,1.3,"متوسط قيمة رصيد التمويل للعميل بنهاية الفترة (تمويل فردي)"]
[null,null,null,1.4,"متوسط قيمة التمويل للعميل عند المنح (تمويل جماعي)"]
[null,null,null,1.5,"متوسط قيمة رصيد التمويل للعميل بنهاية الفترة (تمويل جماعي)"]
[null,null,null,1.6,"متوسط أجل محفظة التمويل (باليوم)"]
[null,null,null,1.7,"متوسط أجل محفظة التمويل الجماعي (باليوم)"]
[null,null,null,1.8,"قيمة ما يتوقع تحصيله خلال 30 يوم أو أقل"]
[null,null,null,1.9,"قيمة ما يتوقع تحصيله بين 31 يوم إلى 90 يوم"]
[null,null,null,"1.10","قيمة ما يتوقع تحصيله بين 91 يوم إلى 180 يوم"]
[null,null,null,1.1100000000000001,"قيمة ما يتوقع تحصيله بين 181 يوم إلى 270 يوم"]
[null,null,null,1.1200000000000001,"قيمة ما يتوقع تحصيله بين 271 يوم إلى 365 يوم"]
[null,null,null,1.1299999999999999,"قيمة ما يتوقع تحصيله بعد أكثر من سنة"]
[]
[]
[null,null,"إعداد:",{"$f":"IF('بيانات عامة'!E23=\"\",\"\",'بيانات عامة'!E23)","v":""}]

{"sheet":"مؤشرات جودة محفظة التمويل","index":3,"n_rows":29,"n_cols":7,"rows_kept":29,"cut":false,"hidden":false,"merged":[[8,3,12,6],[1,6,1,7],[25,4,25,5],[18,4,18,5],[19,4,19,5],[20,4,20,5],[21,4,21,5],[22,4,22,5],[4,3,4,6],[23,4,23,5],[24,4,24,5],[14,3,14,6],[15,4,15,5],[16,4,16,5],[17,4,17,5]]}
[]
[null,{"$f":"IF('بيانات عامة'!E17=\"\",\"\",'بيانات عامة'!E17)","v":""},null,null,null,"ترخيص رقم:",{"$f":"IF('بيانات عامة'!$E$19=\"\",\"\",'بيانات عامة'!$E$19)","v":""}]
[]
[]
[null,null,null," تقرير (ج.م.ص. / 2) الأداء الربع سنوي لنشاط التمويل متناهى الصغر"]
[]
[null,null,null,"الفترة من :",{"$f":"IF('بيانات عامة'!F30=\"\",\"\",'بيانات عامة'!F30)","v":""},"إلى:",{"$f":"IF('بيانات عامة'!J30=\"\",\"\",'بيانات عامة'!J30)","v":""}]
[]
[]
[]
[]
[]
[]
[]
[null,null,null,"2. مؤشرات جودة محفظة التمويل"]
[null,null,null,null,"المؤشر",null,"القيمة"]
[null,null,null,2.1,"معدل الديون المعدومة"]
[null,null,null,2.2000000000000002,"معدل تغطية المخاطر"]
[null,null,null,2.2999999999999998,"نسبة أرصدة العملاء المنتظمة"]
[null,null,null,2.4,"نسبة أرصدة العملاء بتأخير حتى 30 يوم"]
[null,null,null,2.5,"نسبة أرصدة العملاء بتأخير حتى 60 يوم"]
[null,null,null,2.6,"نسبة أرصدة العملاء بتأخير حتى 90 يوم"]
[null,null,null,2.7,"نسبة أرصدة العملاء بتأخير حتى 120 يوم"]
[null,null,null,2.8,"نسبة أرصدة العملاء بتأخير يتجاوز 120 يوم"]
[null,null,null,2.9,"نسبة أرصدة العملاء بترحيل أقساط – 3 أقساط"]
[null,null,null,2.1,"نسبة أرصدة العملاء المعاد جدولتها"]
[]
[]
[null,null,"إعداد:",{"$f":"IF('بيانات عامة'!$E$23=\"\",\"\",'بيانات عامة'!$E$23)","v":""}]

{"sheet":". مؤشرات مالية","index":4,"n_rows":22,"n_cols":8,"rows_kept":22,"cut":false,"hidden":false,"merged":[[18,4,18,5],[14,3,14,6],[1,7,1,8],[4,3,4,7],[15,4,15,5],[16,4,16,5],[17,4,17,5],[8,3,12,7]]}
[]
[null,{"$f":"IF('بيانات عامة'!E17=\"\",\"\",'بيانات عامة'!E17)","v":""},null,null,null,null,"ترخيص رقم:",{"$f":"IF('بيانات عامة'!$E$19=\"\",\"\",'بيانات عامة'!$E$19)","v":""}]
[]
[]
[null,null,null," تقرير (ج.م.ص. / 2) الأداء الربع سنوي لنشاط التمويل متناهى الصغر"]
[]
[null,null,null,"الفترة من :",{"$f":"IF('بيانات عامة'!F30=\"\",\"\",'بيانات عامة'!F30)","v":""},"إلى:",{"$f":"IF('بيانات عامة'!J30=\"\",\"\",'بيانات عامة'!J30)","v":""}]
[]
[]
[]
[]
[]
[]
[]
[null,null,null,"3-  مؤشرات مالية"]
[null,null,null,null,"المؤشر",null,"القيمة"]
[null,null,null,3.1,"معدل السيولة السريعة"]
[null,null,null,3.2,"معدل السيولة"]
[null,null,null,3.3,"معدل استحقاقات القروض الممنوحة للجمعية/ المؤسسة الأهلية"]
[]
[]
[null,null,"إعداد:",{"$f":"IF('بيانات عامة'!$E$23=\"\",\"\",'بيانات عامة'!$E$23)","v":""}]

{"sheet":"مؤشرات تشغيلية ","index":5,"n_rows":22,"n_cols":7,"rows_kept":22,"cut":false,"hidden":false,"merged":[[1,6,1,7],[16,4,16,5],[17,4,17,5],[18,4,18,5],[15,6,15,7],[16,6,16,7],[17,6,17,7],[18,6,18,7],[4,3,4,7],[14,3,14,7],[15,4,15,5],[8,3,12,7]]}
[]
[null,{"$f":"IF('بيانات عامة'!E17=\"\",\"\",'بيانات عامة'!E17)","v":""},null,null,null,"ترخيص رقم:",{"$f":"IF('بيانات عامة'!$E$19=\"\",\"\",'بيانات عامة'!$E$19)","v":""}]
[]
[]
[null,null,null," تقرير (ج.م.ص. / 2) الأداء الربع سنوي لنشاط التمويل متناهى الصغر"]
[]
[null,null,null,"الفترة من :",{"$f":"IF('بيانات عامة'!F30=\"\",\"\",'بيانات عامة'!F30)","v":""},"إلى:",{"$f":"IF('بيانات عامة'!J30=\"\",\"\",'بيانات عامة'!J30)","v":""}]
[]
[]
[]
[]
[]
[]
[]
[null,null,null,"4. مؤشرات تشغيلية"]
[null,null,null,"م","بيان",null,"من بداية العام"]
[null,null,null,4.0999999999999996,"متوسط تكلفة الجنيه تمويل للمحفظة"]
[null,null,null,4.2,"نسبة تكلفة التمويل إلى إجمالى المصروفات"]
[null,null,null,4.3,"متوسط تكلفة التشغيل لكل عميل"]
[]
[]
[null,null,"إعداد:",{"$f":"IF('بيانات عامة'!$E$23=\"\",\"\",'بيانات عامة'!$E$23)","v":""}]

{"sheet":"مؤشرات العمالة والانتاجية","index":6,"n_rows":23,"n_cols":8,"rows_kept":23,"cut":false,"hidden":false,"merged":[[1,7,1,8],[16,4,16,5],[17,4,17,5],[18,4,18,5],[19,4,19,5],[4,3,4,7],[14,3,14,6],[15,4,15,5],[8,3,12,7]]}
[]
[null,{"$f":"IF('بيانات عامة'!E17=\"\",\"\",'بيانات عامة'!E17)","v":""},null,null,null,null,"ترخيص رقم:",{"$f":"IF('بيانات عامة'!$E$19=\"\",\"\",'بيانات عامة'!$E$19)","v":""}]
[]
[]
[null,null,null," تقرير (ج.م.ص. / 2) الأداء الربع سنوي لنشاط التمويل متناهى الصغر"]
[]
[null,null,null,"الفترة من :",{"$f":"IF('بيانات عامة'!F30=\"\",\"\",'بيانات عامة'!F30)","v":""},"إلى:",{"$f":"IF('بيانات عامة'!J30=\"\",\"\",'بيانات عامة'!J30)","v":""}]
[]
[]
[]
[]
[]
[]
[]
[null,null,null,"5. مؤشرات العمالة و الانتاجية"]
[null,null,null,"م","بيان",null,"القيمة"]
[null,null,null,5.0999999999999996,"عدد العاملين بنهاية الفترة"]
[null,null,null,5.2,"عدد مسئولى التمويل بنهاية الفترة"]
[null,null,null,5.3,"نسبة عدد العملاء إلى عدد العاملين بنهاية الفترة"]
[null,null,null,5.4,"نسبة عدد العملاء إلى مسئولى التمويل بنهاية الفترة"]
[]
[]
[null,null,"إعداد:",{"$f":"IF('بيانات عامة'!$E$23=\"\",\"\",'بيانات عامة'!$E$23)","v":""}]